bitfinex/quotes_BTCUSD_20250219
["timestamp","ask_amount","ask_price","bid_price","bid_amount"]
[1739993020393,0.155894,96219.0,96215.0,0.0774]
[1739993020978,0.01628657,96228.0,96215.0,0.0774]
[1739993021224,0.155894,96219.0,96215.0,0.0774]
[1739993021749,0.162894,96219.0,96215.0,0.0774]
[1739993021960,0.159894,96219.0,96215.0,0.0774]
[1739993022272,0.155894,96219.0,96215.0,0.0774]
[1739993022684,0.156894,96219.0,96215.0,0.0774]
[1739993023395,0.155899,96216.0,96215.0,0.0774]
[1739993026067,0.156899,96216.0,96215.0,0.0774]
[1739993026828,0.156899,96216.0,96215.0,0.0782508]
[1739993027461,0.155899,96216.0,96215.0,0.0782508]
[1739993027672,0.157899,96216.0,96215.0,0.0782508]
[1739993027875,0.161899,96216.0,96215.0,0.0782508]
[1739993028084,0.157899,96216.0,96215.0,0.0782508]
[1739993028283,0.155899,96217.0,96215.0,0.0782508]
[1739993028489,0.004,96216.0,96215.0,0.0782508]
[1739993028619,0.15,96220.0,96215.0,0.0782508]
[1739993028825,0.207859,96219.0,96215.0,0.0792508]
[1739993029057,0.15,96220.0,96215.0,0.0792508]
[1739993029058,0.155899,96216.0,96215.0,0.0792508]
[1739993029380,0.155899,96216.0,96215.0,0.0782508]
[1739993029626,0.155899,96216.0,96215.0,0.0792508]
[1739993030657,0.155899,96216.0,96215.0,0.0782508]
[1739993031842,0.155899,96216.0,96215.0,0.0792508]
[1739993033937,0.10540032,96218.0,96215.0,0.0792508]
[1739993034083,0.155899,96216.0,96215.0,0.0792508]
[1739993034737,0.160899,96216.0,96215.0,0.0782508]
[1739993035078,0.159899,96216.0,96215.0,0.0782508]
[1739993035285,0.155899,96216.0,96215.0,0.0782508]
[1739993035438,0.155899,96216.0,96215.0,0.0008508]
[1739993035648,0.155899,96216.0,96215.0,0.0018508]
[1739993035855,0.155899,96216.0,96215.0,0.0008508]
[1739993036260,0.155899,96216.0,96215.0,0.0018508]
[1739993036469,0.305899,96216.0,96215.0,0.0008508]
[1739993036715,0.37945364,96216.0,96215.0,0.0008508]
[1739993036894,0.59905164,96216.0,96215.0,0.0008508]
[1739993037531,0.16454085,96215.0,96195.0,0.0008506]
[1739993037677,0.305931,96196.0,96195.0,0.0008506]
[1739993038805,0.30602553,96196.0,96195.0,0.0008506]
[1739993039009,0.30902553,96196.0,96195.0,0.0008506]
[1739993039613,0.31202553,96196.0,96195.0,0.0008506]
[1739993039814,0.31702553,96196.0,96195.0,0.0008506]
[1739993040704,0.16109453,96196.0,96195.0,0.0008506]
[1739993040934,0.31702553,96196.0,96195.0,0.0008506]
[1739993041133,0.31202553,96196.0,96195.0,0.0008506]
[1739993041356,0.33782517,96196.0,96195.0,0.0008506]
[1739993041937,0.32682517,96196.0,96195.0,0.0008506]
[1739993042258,0.32882517,96196.0,96195.0,0.0008506]
[1739993043074,0.32682517,96196.0,96195.0,0.0008506]
[1739993044256,0.32882517,96196.0,96195.0,0.0008506]
[1739993044455,0.33082517,96196.0,96195.0,0.0008506]
[1739993044879,0.32782517,96196.0,96195.0,0.0008506]
[1739993045140,0.32682517,96196.0,96195.0,0.0008506]
[1739993045276,0.32982517,96196.0,96195.0,0.0008506]
[1739993045476,0.33082517,96196.0,96195.0,0.0008506]
[1739993045703,0.32682517,96196.0,96195.0,0.0008506]
[1739993046099,0.32982517,96196.0,96195.0,0.0008506]
[1739993046256,0.17389417,96196.0,96195.0,0.0008506]
[1739993046480,0.00309453,96196.0,96195.0,0.1567836]
[1739993046678,0.00309453,96196.0,96195.0,0.38798725]
[1739993047542,9.453e-05,96196.0,96195.0,0.38798725]
[1739993047696,0.00409453,96196.0,96195.0,0.23205425]
[1739993047917,0.00309453,96196.0,96195.0,0.38798725]
[1739993048148,0.00309453,96196.0,96195.0,0.3173625]
[1739993048312,0.01454085,96230.0,96197.0,0.207905]
[1739993048516,9.931e-05,96222.0,96202.0,0.23895363]
[1739993048784,0.155891,96221.0,96202.0,0.08303363]
[1739993048985,9.931e-05,96222.0,96206.0,0.0465]
[1739993049620,9.931e-05,96222.0,96215.0,0.207866]
[1739993049883,9.931e-05,96222.0,96212.0,0.08303363]
[1739993050096,9.931e-05,96222.0,96221.0,0.155891]
[1739993050538,9.931e-05,96222.0,96216.0,0.15000365]
[1739993050750,0.00609931,96222.0,96217.0,0.155896]
[1739993050965,0.00609931,96222.0,96218.0,0.10250365]
[1739993051171,9.931e-05,96222.0,96216.0,0.0475]
[1739993051374,0.00152471,96222.0,96217.0,0.0818]
[1739993051593,0.00052471,96222.0,96217.0,0.0818]
[1739993052940,0.155892,96221.0,96217.0,0.0818]
[1739993053162,0.00052471,96222.0,96217.0,0.0818]
[1739993053363,0.155897,96217.0,96216.0,0.0475]
[1739993054076,0.00052471,96222.0,96203.0,0.1264]
[1739993054385,0.155911,96209.0,96203.0,0.1264]
[1739993054622,0.02183957,96217.0,96203.0,0.1264]
[1739993054831,0.75771471,96216.0,96195.0,0.0814508]
[1739993055042,0.155929,96198.0,96195.0,0.0814508]
[1739993055189,0.155923,96201.0,96195.0,0.0814508]
[1739993055352,0.207892,96204.0,96195.0,0.0814508]
[1739993055561,0.207878,96211.0,96195.0,0.0814508]
[1739993055810,0.139612,96210.0,96195.0,0.0008508]
[1739993056045,0.155929,96198.0,96195.0,0.0008508]
[1739993056336,0.07422986,96211.0,96195.0,0.0008508]
[1739993056494,0.155931,96197.0,96195.0,0.0008508]
[1739993056697,0.15593,96197.0,96195.0,0.0008508]
[1739993056903,0.207894,96203.0,96195.0,0.0008508]
[1739993056904,0.155931,96196.0,96195.0,0.0008508]
[1739993057802,0.155931,96196.0,96195.0,0.0018508]
[1739993058370,0.155931,96196.0,96195.0,0.0008508]
[1739993058751,0.155931,96196.0,96195.0,0.0018508]
[1739993059462,0.17872152,96196.0,96195.0,0.0018508]
[1739993059814,0.17872152,96196.0,96195.0,0.0008508]
[1739993060203,0.18272152,96196.0,96195.0,0.0008508]
[1739993061673,0.25735661,96196.0,96195.0,0.0008508]
[1739993062669,1.45542837,96196.0,96195.0,0.0008508]
[1739993062868,2.01518037,96196.0,96195.0,0.0008508]
[1739993063065,1.07173661,96196.0,96195.0,0.0008508]
[1739993063266,0.25735661,96196.0,96195.0,0.0008508]
[1739993064133,0.02679052,96196.0,96195.0,0.0008508]
[1739993064253,0.006,96196.0,96195.0,0.0008508]
[1739993064454,0.006,96196.0,96195.0,0.0491508]
[1739993064656,0.006,96196.0,96195.0,0.1316508]
[1739993065136,0.157931,96196.0,96195.0,0.1316508]
[1739993065356,0.156931,96196.0,96195.0,0.1316508]
[1739993066571,0.156931,96196.0,96195.0,0.0491508]
[1739993066782,0.155931,96196.0,96195.0,0.0491508]
[1739993067324,0.155931,96196.0,96195.0,0.0008508]
[1739993067534,0.155931,96196.0,96195.0,0.0028508]
[1739993067852,0.155931,96196.0,96195.0,0.0008508]
[1739993068523,0.156931,96196.0,96195.0,0.0008508]
[1739993069711,0.2132047,96196.0,96195.0,0.0008508]
[1739993069912,1.19923879,96196.0,96195.0,0.0008508]
[1739993070117,1.14584809,96196.0,96195.0,0.0008508]
[1739993070337,0.01629169,96201.0,96197.0,0.207906]
[1739993070559,0.0004253,96233.0,96197.0,0.0793]
[1739993070882,0.0004253,96233.0,96197.0,0.0703]
[1739993070883,0.542059,96221.0,96197.0,0.0703]
[1739993071092,0.02033586,96225.0,96197.0,0.0703]
[1739993071295,0.271178,96221.0,96206.0,0.08303363]
[1739993071476,0.155892,96220.0,96206.0,0.08303363]
[1739993071636,0.155892,96221.0,96210.0,0.155907]
[1739993071826,0.01628897,96229.0,96206.0,0.08303363]
[1739993071827,0.00452471,96222.0,96221.0,0.155891]
[1739993072032,0.00052471,96222.0,96221.0,0.202091]
[1739993073690,0.00052471,96222.0,96221.0,0.277591]
[1739993073897,0.00052471,96222.0,96221.0,0.281591]
[1739993074500,0.00052471,96222.0,96221.0,0.282591]
[1739993074950,0.00052471,96222.0,96221.0,0.281591]
[1739993075112,0.00052471,96222.0,96221.0,0.285591]
[1739993077964,0.00052471,96222.0,96221.0,0.1297]
[1739993079182,0.00052471,96222.0,96221.0,0.0542]
[1739993079499,0.00052471,96222.0,96221.0,0.0502]
[1739993079969,0.00052471,96222.0,96221.0,0.0512]
[1739993080354,0.00052471,96222.0,96221.0,0.0502]
[1739993080626,0.00052471,96222.0,96221.0,0.0462]
[1739993080833,0.15641371,96222.0,96221.0,0.0502]
[1739993081195,0.15641371,96222.0,96221.0,0.0492]
[1739993081426,0.15641371,96222.0,96221.0,0.0532]
[1739993082412,0.00052471,96222.0,96221.0,0.0532]
[1739993082628,0.00052471,96222.0,96221.0,0.0502]
[1739993083069,0.00052471,96222.0,96221.0,0.0532]
[1739993083279,0.00052471,96222.0,96221.0,0.209091]
[1739993083280,0.0003675,96222.0,96221.0,0.209091]
[1739993084068,0.0003675,96222.0,96221.0,0.0532]
[1739993084274,0.0003675,96222.0,96221.0,0.209091]
[1739993087216,0.0003675,96222.0,96221.0,0.0532]
[1739993087418,0.0003675,96222.0,96221.0,0.209091]
[1739993088508,0.0003675,96222.0,96221.0,0.0532]
[1739993088717,0.0003675,96222.0,96221.0,0.209091]
[1739993089745,0.0003675,96222.0,96221.0,0.0532]
[1739993090096,0.1562565,96222.0,96221.0,0.0532]
[1739993090430,0.0003675,96222.0,96221.0,0.0532]
[1739993090633,0.207838,96229.0,96221.0,0.0532]
[1739993090835,0.155888,96223.0,96221.0,0.0532]
[1739993091075,0.0004253,96233.0,96221.0,0.0532]
[1739993091493,0.0004253,96233.0,96226.0,0.08303363]
[1739993091645,0.0004253,96233.0,96226.0,0.29087563]
[1739993091930,0.0004253,96233.0,96231.0,0.155873]
[1739993092452,0.0004253,96233.0,96226.0,0.08303363]
[1739993092611,0.0004253,96233.0,96228.0,0.155879]
[1739993092812,0.0014253,96233.0,96226.0,0.08303363]
[1739993092993,0.0014253,96233.0,96227.0,0.207841]
[1739993093196,0.0004253,96233.0,96227.0,0.207841]
[1739993093509,0.0014253,96233.0,96226.0,0.08303363]
[1739993094120,0.0014253,96233.0,96229.0,0.155876]
[1739993094728,0.0014253,96233.0,96229.0,0.155877]
[1739993094931,0.0004253,96233.0,96229.0,0.155877]
[1739993095181,0.0004253,96233.0,96226.0,0.08303363]
[1739993095380,0.0004253,96233.0,96229.0,0.003]
[1739993096009,0.0004253,96233.0,96229.0,0.006]
[1739993096187,0.0004253,96233.0,96229.0,0.003]
[1739993096392,0.0004253,96233.0,96232.0,0.155873]
[1739993096997,0.0004253,96233.0,96229.0,0.003]
[1739993098117,0.0004253,96233.0,96232.0,0.003]
[1739993098254,0.0004253,96233.0,96229.0,0.003]
[1739993098458,0.0004253,96233.0,96232.0,0.155873]
[1739993098913,0.0004253,96233.0,96232.0,0.158873]
[1739993100755,0.0004253,96233.0,96232.0,0.161873]
[1739993102074,0.0004253,96233.0,96232.0,0.006]
[1739993103524,0.0004253,96233.0,96232.0,0.161873]
[1739993104404,0.0004253,96233.0,96232.0,0.006]
[1739993105640,0.1562963,96233.0,96232.0,0.006]
[1739993106384,0.1562963,96233.0,96199.0,0.0483]
[1739993106385,0.15,96221.0,96199.0,0.0483]
[1739993106595,0.155931,96196.0,96186.0,0.0008502]
[1739993106798,0.155938,96192.0,96186.0,0.0008502]
[1739993107027,0.787797,96192.0,96186.0,0.0008502]
[1739993107241,1.020611,96192.0,96186.0,0.0008502]
[1739993107446,0.846467,96192.0,96191.0,0.00128591]
[1739993107651,0.54994,96192.0,96191.0,0.00128591]
[1739993107853,0.270001,96192.0,96191.0,0.00128591]
[1739993108089,0.15,96192.0,96191.0,0.00128591]
[1739993108644,0.152,96192.0,96191.0,0.00128591]
[1739993108853,0.310938,96192.0,96191.0,0.00128591]
[1739993109244,0.307938,96192.0,96191.0,0.00128591]
[1739993109651,0.307938,96192.0,96191.0,0.00228591]
[1739993109847,0.48529288,96192.0,96191.0,0.00228591]
[1739993110137,1.82904288,96192.0,96191.0,0.00228591]
[1739993110651,0.38278923,96192.0,96191.0,0.00228591]
[1739993110869,0.38278923,96192.0,96191.0,0.00128591]
[1739993111073,0.38078923,96192.0,96191.0,0.00128591]
[1739993111286,0.38178923,96192.0,96191.0,0.00128591]
[1739993111488,3.23736023,96192.0,96191.0,0.00228591]
[1739993111620,3.16496023,96192.0,96191.0,0.00128591]
[1739993111820,3.14769623,96192.0,96191.0,0.00128591]
[1739993112023,3.16800298,96192.0,96191.0,0.00128591]
[1739993112223,3.16600298,96192.0,96191.0,0.00128591]
[1739993112433,3.14967298,96192.0,96191.0,0.00128591]
[1739993112658,3.07772923,96192.0,96191.0,0.00128591]
[1739993112853,3.08072923,96192.0,96191.0,0.00128591]
[1739993113311,3.08572923,96192.0,96191.0,0.00128591]
[1739993113489,3.10027008,96192.0,96191.0,9.1e-07]
[1739993113675,0.39200008,96192.0,96191.0,9.1e-07]
[1739993113849,0.49450373,96192.0,96191.0,9.1e-07]
[1739993114049,0.39200008,96192.0,96191.0,9.1e-07]
[1739993114278,0.37745923,96192.0,96191.0,9.1e-07]
[1739993114696,0.37445923,96192.0,96191.0,9.1e-07]
[1739993114846,0.38045923,96192.0,96191.0,9.1e-07]
[1739993115069,0.37345923,96192.0,96191.0,9.1e-07]
[1739993115270,0.37745923,96192.0,96191.0,9.1e-07]
[1739993115496,0.37145923,96192.0,96191.0,9.1e-07]
[1739993115727,0.37445923,96192.0,96191.0,9.1e-07]
[1739993116265,0.36745923,96192.0,96191.0,9.1e-07]
[1739993116465,0.38145923,96192.0,96191.0,9.1e-07]
[1739993116775,0.45623968,96192.0,96191.0,9.1e-07]
[1739993116978,0.08185123,96192.0,96191.0,9.1e-07]
[1739993117207,0.24078923,96192.0,96191.0,9.1e-07]
[1739993118256,0.23078923,96192.0,96191.0,9.1e-07]
[1739993118449,0.32883008,96192.0,96191.0,9.1e-07]
[1739993119017,0.38778923,96192.0,96191.0,9.1e-07]
[1739993119221,0.39478923,96192.0,96191.0,9.1e-07]
[1739993119441,0.38778923,96192.0,96191.0,9.1e-07]
[1739993119641,0.39478923,96192.0,96191.0,9.1e-07]
[1739993119849,0.38778923,96192.0,96191.0,9.1e-07]
[1739993120268,0.39278923,96192.0,96191.0,9.1e-07]
[1739993120993,0.29445403,96192.0,96191.0,9.1e-07]
[1739993121159,0.28745403,96192.0,96191.0,9.1e-07]
[1739993121571,0.29345403,96192.0,96191.0,9.1e-07]
[1739993122214,0.28845403,96192.0,96191.0,9.1e-07]
[1739993122446,0.30699488,96192.0,96191.0,9.1e-07]
[1739993122804,0.30099488,96192.0,96191.0,0.00085191]
[1739993123029,0.39799211,96192.0,96191.0,0.00085191]
[1739993123367,0.30342038,96192.0,96191.0,0.00085191]
[1739993123644,0.30842038,96192.0,96191.0,0.00085191]
[1739993123855,0.30342038,96192.0,96191.0,0.00085191]
[1739993124060,0.31042038,96192.0,96191.0,0.00085191]
[1739993124203,2.33611938,96192.0,96191.0,0.00085191]
[1739993124425,2.14957538,96192.0,96191.0,0.00085191]
[1739993124603,2.15657538,96192.0,96191.0,0.00085191]
[1739993125258,2.24019292,96192.0,96191.0,0.00085191]
[1739993125427,2.14257538,96192.0,96191.0,0.00085191]
[1739993125633,2.14957538,96192.0,96191.0,0.00085191]
[1739993125932,2.15657538,96192.0,96191.0,0.00085191]
[1739993126162,2.14257538,96192.0,96191.0,0.00085191]
[1739993126366,2.14957538,96192.0,96191.0,9.1e-07]
[1739993126518,0.29742038,96192.0,96191.0,9.1e-07]
[1739993126680,0.01454085,96185.0,96136.0,0.08303363]
[1739993126894,0.155988,96161.0,96160.0,0.00094573]
[1739993127139,0.983448,96161.0,96160.0,0.00094573]
[1739993127342,1.375908,96161.0,96160.0,0.00094573]
[1739993127554,1.538993,96161.0,96160.0,0.00094573]
[1739993127756,1.501118,96161.0,96160.0,0.00094573]
[1739993128202,1.51741733,96161.0,96145.0,0.049]
[1739993128366,0.156004,96151.0,96150.0,0.00098084]
[1739993129829,0.02083181,96160.0,96150.0,0.00098084]
[1739993130271,0.01555462,96161.0,96157.0,0.0761]
[1739993130471,0.00773689,96167.0,96157.0,0.0741]
[1739993130652,0.155987,96162.0,96157.0,0.0741]
[1739993130800,0.20797,96168.0,96157.0,0.0701]
[1739993131013,0.15,96166.0,96157.0,0.0701]
[1739993131216,0.155985,96163.0,96157.0,0.0701]
[1739993131424,0.001,96161.0,96157.0,0.0701]
[1739993131845,0.001,96161.0,96158.0,0.0479]
[1739993132090,0.002,96160.0,96158.0,0.0479]
[1739993132898,0.002,96166.0,96158.0,0.0479]
[1739993133093,0.209974,96166.0,96158.0,0.0479]
[1739993133321,0.155981,96165.0,96158.0,0.0479]
[1739993133672,0.002,96166.0,96158.0,0.15040365]
[1739993133803,0.155969,96173.0,96158.0,0.15040365]
[1739993134002,0.02083714,96176.0,96158.0,0.15040365]
[1739993134206,0.207954,96175.0,96158.0,0.15082915]
[1739993134433,0.02083714,96176.0,96159.0,0.207988]
[1739993134634,0.15,96185.0,96167.0,0.0773]
[1739993134844,0.15,96183.0,96167.0,0.0753]
[1739993134996,0.155963,96177.0,96167.0,0.0753]
[1739993135190,0.15,96189.0,96167.0,0.0753]
[1739993135468,0.15,96187.0,96167.0,0.0753]
[1739993135797,0.005,96176.0,96168.0,0.0495]
[1739993136397,0.005,96176.0,96168.0,0.257468]
[1739993136642,0.005,96176.0,96170.0,0.155972]
[1739993136846,0.005,96176.0,96168.0,0.0495]
[1739993137018,0.005,96176.0,96175.0,0.155965]
[1739993137219,0.03521223,96189.0,96171.0,0.10250365]
[1739993137423,0.002,96187.0,96171.0,0.10250365]
[1739993137643,0.002,96187.0,96172.0,0.20796]
[1739993137845,0.002,96187.0,96174.0,0.0784]
[1739993138066,0.155945,96188.0,96175.0,0.25846765]
[1739993138268,0.02062243,96189.0,96175.0,0.10650365]
[1739993138475,0.155963,96177.0,96175.0,0.004]
[1739993138630,0.155963,96177.0,96174.0,0.0784]
[1739993138852,0.22854643,96189.0,96174.0,0.0784]
[1739993139056,0.155963,96177.0,96174.0,0.0784]
[1739993139353,0.155965,96175.0,96174.0,0.0784]
[1739993139579,0.155964,96176.0,96174.0,0.0784]
[1739993139773,0.207932,96185.0,96174.0,0.0784]
[1739993139949,0.155965,96175.0,96174.0,0.0784]
[1739993140148,0.155972,96171.0,96168.0,0.0495]
[1739993140392,0.15597,96172.0,96168.0,0.0495]
[1739993140804,0.155975,96169.0,96168.0,0.0495]
[1739993141326,0.156973,96171.0,96168.0,0.0545]
[1739993141481,0.155975,96169.0,96168.0,0.0545]
[1739993141888,0.155975,96169.0,96168.0,0.0495]
[1739993142092,0.155991,96159.0,96158.0,0.0486255]
[1739993142320,0.156004,96151.0,96150.0,0.00098084]
[1739993143958,1.250341,96151.0,96150.0,0.00098084]
[1739993144394,0.15,96150.0,96120.0,0.0464]
[1739993144587,0.156022,96140.0,96120.0,0.0464]
[1739993144838,0.553343,96140.0,96120.0,0.0464]
[1739993145041,0.430753,96140.0,96120.0,0.0464]
[1739993145381,0.393583,96140.0,96120.0,0.0464]
[1739993145789,0.41416949,96140.0,96120.0,0.0464]
[1739993145924,0.41616949,96140.0,96120.0,0.0464]
[1739993146130,0.41416949,96140.0,96120.0,0.0464]
[1739993146335,0.17660849,96140.0,96120.0,0.0464]
[1739993146541,0.59654749,96140.0,96120.0,0.0464]
[1739993146740,0.76836479,96140.0,96120.0,0.0464]
[1739993146960,0.77136479,96140.0,96120.0,0.0464]
[1739993147163,0.77336479,96140.0,96120.0,0.0464]
[1739993147327,0.77036479,96140.0,96120.0,0.0464]
[1739993147816,0.77336479,96140.0,96120.0,0.0464]
[1739993148222,0.77036479,96140.0,96120.0,0.0464]
[1739993148420,0.69451979,96140.0,96120.0,0.0464]
[1739993148634,0.84651979,96140.0,96120.0,0.0464]
[1739993149043,0.84451979,96140.0,96120.0,0.0464]
[1739993149177,0.84651979,96140.0,96120.0,0.0464]
[1739993149383,0.84451979,96140.0,96120.0,0.0464]
[1739993149903,0.84651979,96140.0,96120.0,0.0464]
[1739993150093,0.84451979,96140.0,96120.0,0.0464]
[1739993150371,0.84351979,96140.0,96120.0,0.0464]
[1739993150547,0.84651979,96140.0,96120.0,0.0464]
[1739993150927,0.84351979,96140.0,96120.0,0.0464]
[1739993151328,0.84651979,96140.0,96120.0,0.0464]
[1739993152739,0.306032,96134.0,96120.0,0.0464]
[1739993153022,1.552512,96134.0,96120.0,0.0464]
[1739993153197,1.196087,96134.0,96120.0,0.0464]
[1739993154363,1.091446,96134.0,96120.0,0.0464]
[1739993155468,0.30604,96129.0,96120.0,0.0464]
[1739993155643,2.102824,96129.0,96128.0,0.00098246]
[1739993155932,2.321899,96129.0,96128.0,0.00098246]
[1739993156205,1.369758,96129.0,96128.0,0.00098246]
[1739993156333,1.46161578,96129.0,96128.0,0.00098246]
[1739993156523,1.369758,96129.0,96128.0,0.00098246]
[1739993156740,0.795332,96129.0,96128.0,0.00098246]
[1739993156940,0.797332,96129.0,96128.0,0.00098246]
[1739993157140,0.618047,96129.0,96128.0,0.00098246]
[1739993157343,0.578212,96129.0,96128.0,0.00098246]
[1739993157551,0.565138,96129.0,96128.0,0.00098246]
[1739993157995,0.58222612,96129.0,96128.0,0.00098246]
[1739993158323,0.42618612,96129.0,96128.0,0.00098246]
[1739993158465,0.46438112,96129.0,96128.0,0.00098246]
[1739993158841,0.46238112,96129.0,96128.0,0.00098246]
[1739993159041,0.46338112,96129.0,96128.0,0.00098246]
[1739993159332,0.46038112,96129.0,96128.0,0.00098246]
[1739993159488,0.46238112,96129.0,96128.0,0.00098246]
[1739993159898,0.46038112,96129.0,96128.0,0.00098246]
[1739993160503,0.28839012,96129.0,96128.0,0.00098246]
[1739993160706,0.53037412,96129.0,96128.0,0.08328246]
[1739993160884,0.53037412,96129.0,96128.0,0.00098246]
[1739993161551,0.62665156,96129.0,96128.0,0.00098246]
[1739993162235,0.62865156,96129.0,96128.0,0.00098246]
[1739993162457,0.62965156,96129.0,96128.0,0.00098246]
[1739993162799,0.62765156,96129.0,96128.0,0.00098246]
[1739993163048,0.41740556,96129.0,96128.0,0.00098246]
[1739993163252,2.02732456,96129.0,96128.0,0.00098246]
[1739993163464,2.02732456,96129.0,96112.0,0.0823]
[1739993163465,0.306046,96125.0,96112.0,0.0823]
[1739993163655,2.472361,96125.0,96109.0,0.0464]
[1739993163885,2.538189,96125.0,96109.0,0.0464]
[1739993164084,2.464969,96125.0,96109.0,0.0464]
[1739993164580,2.037532,96125.0,96109.0,0.0464]
[1739993164781,2.040532,96125.0,96109.0,0.0464]
[1739993164982,2.037532,96125.0,96109.0,0.0464]
[1739993165546,1.954054,96125.0,96109.0,0.0464]
[1739993165702,0.79080912,96125.0,96109.0,0.0464]
[1739993166304,0.78780912,96125.0,96109.0,0.0464]
[1739993166535,0.33098712,96125.0,96123.0,0.0799]
[1739993166736,0.52187212,96125.0,96123.0,0.0799]
[1739993167134,0.33098712,96125.0,96123.0,0.0799]
[1739993167333,0.30239012,96125.0,96123.0,0.0799]
[1739993167561,0.32698712,96125.0,96123.0,0.0799]
[1739993167747,0.208059,96127.0,96123.0,0.0799]
[1739993167960,0.156046,96125.0,96123.0,0.0799]
[1739993168288,0.003,96125.0,96124.0,0.28703263]
[1739993168574,0.003,96125.0,96124.0,0.23348828]
[1739993168870,0.002,96125.0,96124.0,0.23348828]
[1739993169406,0.01467109,96130.0,96124.0,0.23348828]
[1739993169633,0.001,96125.0,96124.0,0.23348828]
[1739993170048,0.01551328,96132.0,96124.0,0.23348828]
[1739993170406,0.001,96125.0,96124.0,0.23348828]
[1739993170638,0.002,96125.0,96124.0,0.23348828]
[1739993171028,0.002,96125.0,96124.0,0.38953628]
[1739993171440,0.002,96125.0,96124.0,0.47053628]
[1739993171880,0.001,96125.0,96124.0,0.31448828]
[1739993172492,0.01551328,96132.0,96124.0,0.31448828]
[1739993172493,0.17154828,96132.0,96124.0,0.31448828]
[1739993172704,0.17154828,96132.0,96125.0,0.10250365]
[1739993173033,0.01551328,96132.0,96125.0,0.10250365]
[1739993173761,0.01551328,96132.0,96124.0,0.21198463]
[1739993173762,0.156046,96126.0,96124.0,0.21198463]
[1739993174170,0.01751328,96132.0,96124.0,0.21198463]
[1739993174490,0.156043,96128.0,96124.0,0.21198463]
[1739993174667,0.22556228,96132.0,96124.0,0.21198463]
[1739993174868,0.156042,96128.0,96124.0,0.21198463]
[1739993175197,0.17105231,96132.0,96124.0,0.21198463]
[1739993175383,0.2156875,96153.0,96124.0,0.21198463]
[1739993175615,0.2156875,96153.0,96125.0,0.10250365]
[1739993175616,0.17116,96147.0,96125.0,0.10250365]
[1739993175869,0.20802,96145.0,96125.0,0.10250365]
[1739993175995,0.02070357,96148.0,96126.0,0.0783]
[1739993176198,0.00013022,96148.0,96136.0,0.0783]
[1739993176450,0.122759,96147.0,96136.0,0.0783]
[1739993177064,0.00013022,96148.0,96136.0,0.0783]
[1739993177235,0.156012,96147.0,96136.0,0.0783]
[1739993177435,0.00113022,96148.0,96136.0,0.0783]
[1739993177753,0.208014,96147.0,96136.0,0.0783]
[1739993178089,0.156018,96143.0,96136.0,0.0783]
[1739993178454,0.156019,96142.0,96136.0,0.0783]
[1739993178879,0.20914422,96148.0,96136.0,0.0783]
[1739993179081,0.156013,96146.0,96136.0,0.0783]
[1739993179282,0.20814422,96148.0,96147.0,0.129]
[1739993179283,0.00013022,96148.0,96147.0,0.129]
[1739993180065,0.00113022,96148.0,96147.0,0.129]
[1739993180262,0.22896848,96165.0,96147.0,0.285011]
[1739993180498,0.22896848,96165.0,96147.0,0.129]
[1739993180648,0.155983,96164.0,96147.0,0.129]
[1739993180856,0.02099148,96165.0,96147.0,0.129]
[1739993181110,0.155983,96164.0,96151.0,0.156004]
[1739993181333,0.02099148,96165.0,96152.0,0.10250365]
[1739993181607,0.17697348,96165.0,96152.0,0.10250365]
[1739993181827,0.155983,96164.0,96152.0,0.10250365]
[1739993182041,0.17697248,96165.0,96152.0,0.10250365]
[1739993182397,0.17697248,96165.0,96152.0,0.10150365]
[1739993182621,0.19806165,96165.0,96152.0,0.10250365]
[1739993182822,0.04208065,96165.0,96152.0,0.10250365]
[1739993183165,0.005,96164.0,96152.0,0.10250365]
[1739993183306,0.19806265,96165.0,96152.0,0.25850565]
[1739993183512,0.02608917,96165.0,96164.0,0.155983]
[1739993183712,0.00800988,96198.0,96164.0,0.155983]
[1739993183713,0.207835,96231.0,96183.0,0.155952]
[1739993183912,0.00098184,96184.0,96183.0,0.36668563]
[1739993184109,0.00098184,96184.0,96183.0,0.38122648]
[1739993184574,0.00098184,96184.0,96183.0,0.63373013]
[1739993184774,0.0008518,96229.0,96191.0,0.283139]
[1739993184929,0.0008518,96229.0,96191.0,0.3961835]
[1739993185133,0.0008518,96229.0,96191.0,0.3931835]
[1739993185354,0.01469318,96215.0,96191.0,0.3931835]
[1739993185611,0.01485187,96226.0,96191.0,0.5431835]
[1739993185787,0.0008518,96229.0,96199.0,0.283126]
[1739993185986,0.0008518,96229.0,96199.0,0.4001705]
[1739993185987,0.01597359,96229.0,96199.0,0.4001705]
[1739993186403,0.0008518,96229.0,96199.0,0.3942445]
[1739993186592,0.00128678,96229.0,96222.0,0.0774]
[1739993186792,0.00128678,96229.0,96226.0,0.155882]
[1739993187015,0.00128678,96229.0,96222.0,0.0774]
[1739993187375,0.00128678,96229.0,96228.0,0.155879]
[1739993187595,0.00128678,96229.0,96228.0,0.202979]
[1739993187800,0.00128678,96229.0,96228.0,0.0471]
[1739993188060,0.00128678,96229.0,96228.0,0.202979]
[1739993188640,0.00128678,96229.0,96228.0,0.30548265]
[1739993188858,0.00128678,96229.0,96228.0,0.30848265]
[1739993189022,0.00128678,96229.0,96228.0,0.31148265]
[1739993189652,0.00128678,96229.0,96228.0,0.30848265]
[1739993189872,0.00128678,96229.0,96228.0,0.30548265]
[1739993190071,0.00128678,96229.0,96228.0,0.31248265]
[1739993191097,0.00128678,96229.0,96228.0,0.0611]
[1739993191597,0.00128678,96229.0,96228.0,0.216979]
[1739993192400,0.00128678,96229.0,96228.0,0.0611]
[1739993192600,0.00128678,96229.0,96228.0,0.216979]
[1739993193258,0.00128678,96229.0,96228.0,0.31948265]
[1739993193450,0.0004253,96233.0,96232.0,0.155873]
[1739993193611,3e-07,96233.0,96232.0,0.5027175]
[1739993193811,0.0004254,96240.0,96239.0,0.44560185]
[1739993194016,2e-07,96242.0,96241.0,0.46559885]
[1739993194226,5.8e-07,96242.0,96241.0,0.5681025]
[1739993194650,0.0008516,96263.0,96246.0,0.46559085]
[1739993194846,0.0008516,96263.0,96256.0,0.281034]
[1739993195089,0.0008516,96263.0,96256.0,0.4060785]
[1739993196439,0.0008516,96263.0,96256.0,0.5630785]
[1739993196621,7e-07,96267.0,96266.0,0.34035885]
[1739993196919,7e-07,96267.0,96266.0,0.4428625]
[1739993197325,7e-07,96267.0,96266.0,0.4228625]
[1739993197525,7e-07,96267.0,96266.0,0.4308625]